[Event "Titled Tuesday Blitz January 10 Early 2023"]
[White "Sadubayev, Airat"]
[Black "Torres Dominguez, David"]
[WhiteFideId "13713264"]
[BlackFideId "2220857"]
[WhiteElo "2320"]
[BlackElo "1994"]
[Result "1-0"]
[Round "09"]
[TimeControl "180+2"]
[Date "2023.01.10"]
[WhiteClock "0:00:28"]
[BlackClock "0:00:22"]

1. d4 {[%clk 0:02:59]}  e5 {[%clk 0:02:57]} 2. dxe5 {[%clk 0:02:58]}  d6 {[%clk 0:02:57]} 3. Nf3 {[%clk 0:02:52]}  Bg4 {[%clk 0:02:57]} 4. Bf4 {[%clk 0:02:50]}  Nc6 {[%clk 0:02:57]} 5. Nbd2 {[%clk 0:02:31]}  dxe5 {[%clk 0:02:48]} 6. Nxe5 {[%clk 0:02:29]}  Nxe5 {[%clk 0:02:48]} 7. Bxe5 {[%clk 0:02:29]}  Bd6 {[%clk 0:02:49]} 8. Nc4 {[%clk 0:02:25]}  Bxe5 {[%clk 0:02:40]} 9. Qxd8+ {[%clk 0:02:22]}  Rxd8 {[%clk 0:02:40]} 10. Nxe5 {[%clk 0:02:23]}  Be6 {[%clk 0:02:40]} 11. e3 {[%clk 0:02:20]}  f6 {[%clk 0:02:39]} 12. Nd3 {[%clk 0:02:17]}  Kf7 {[%clk 0:02:35]} 13. O-O-O {[%clk 0:02:14]}  Ne7 {[%clk 0:02:34]} 14. Be2 {[%clk 0:02:11]}  b6 {[%clk 0:02:34]} 15. a3 {[%clk 0:02:06]}  c5 {[%clk 0:02:34]} 16. Nf4 {[%clk 0:02:05]}  Ng6 {[%clk 0:02:18]} 17. Nxe6 {[%clk 0:02:01]}  Kxe6 {[%clk 0:02:18]} 18. Rxd8 {[%clk 0:02:01]}  Rxd8 {[%clk 0:02:17]} 19. Rd1 {[%clk 0:02:02]}  Rxd1+ {[%clk 0:02:14]} 20. Kxd1 {[%clk 0:02:02]}  Kd6 {[%clk 0:02:12]} 21. Bd3 {[%clk 0:01:58]}  Nf8 {[%clk 0:02:12]} 22. Ke2 {[%clk 0:01:54]}  h6 {[%clk 0:02:11]} 23. f4 {[%clk 0:01:52]}  Ne6 {[%clk 0:02:09]} 24. Kf3 {[%clk 0:01:47]}  Nc7 {[%clk 0:02:07]} 25. c4 {[%clk 0:01:46]}  Ne6 {[%clk 0:02:00]} 26. Kg4 {[%clk 0:01:44]}  Nf8 {[%clk 0:01:56]} 27. h4 {[%clk 0:01:43]}  Ke7 {[%clk 0:01:52]} 28. h5 {[%clk 0:01:41]}  Ne6 {[%clk 0:01:49]} 29. Bf5 {[%clk 0:01:36]}  Nd8 {[%clk 0:01:49]} 30. Be4 {[%clk 0:01:35]}  Ne6 {[%clk 0:01:47]} 31. Kf5 {[%clk 0:01:33]}  Nc7 {[%clk 0:01:42]} 32. Bc6 {[%clk 0:01:27]}  Ne6 {[%clk 0:01:28]} 33. g4 {[%clk 0:01:19]}  Nc7 {[%clk 0:01:25]} 34. Bb7 {[%clk 0:01:08]}  Ne6 {[%clk 0:01:25]} 35. Bd5 {[%clk 0:01:08]}  Nc7 {[%clk 0:01:24]} 36. e4 {[%clk 0:01:07]}  b5 {[%clk 0:01:23]} 37. b3 {[%clk 0:01:04]}  b4 {[%clk 0:01:23]} 38. a4 {[%clk 0:00:59]}  Ne8 {[%clk 0:01:18]} 39. e5 {[%clk 0:00:55]}  fxe5 {[%clk 0:01:12]} 40. Kxe5 {[%clk 0:00:55]}  Nf6 {[%clk 0:01:11]} 41. Bf3 {[%clk 0:00:54]}  Kd7 {[%clk 0:01:03]} 42. g5 {[%clk 0:00:51]}  hxg5 {[%clk 0:00:52]} 43. fxg5 {[%clk 0:00:51]}  Nh7 {[%clk 0:00:52]} 44. Kf5 {[%clk 0:00:47]}  Ke7 {[%clk 0:00:51]} 45. Bd5 {[%clk 0:00:35]}  Nf8 {[%clk 0:00:49]} 46. h6 {[%clk 0:00:32]}  g6+ {[%clk 0:00:43]} 47. Kf4 {[%clk 0:00:29]}  Nh7 {[%clk 0:00:23]} 48. Bg8 {[%clk 0:00:29]}  Kf8 {[%clk 0:00:22]} 49. Bxh7 {[%clk 0:00:27]}  Kf7 {[%clk 0:00:22]} 50. Ke5 {[%clk 0:00:28]} 1-0


[Site "https://www.chess.com"]

[Event "Titled Tuesday Blitz January 10 Early 2023"]
[White "Fiorito, Francisco"]
[Black "Tan, Zhongyi"]
[WhiteFideId "180165"]
[BlackFideId "8603642"]
[WhiteElo "2305"]
[BlackElo "2517"]
[Result "0-1"]
[Round "09"]
[TimeControl "180+2"]
[Date "2023.01.10"]
[WhiteClock "0:00:01"]
[BlackClock "0:00:13"]

1. Nf3 {[%clk 0:03:00]}  d5 {[%clk 0:02:55]} 2. g3 {[%clk 0:03:01]}  g6 {[%clk 0:02:51]} 3. Bg2 {[%clk 0:03:00]}  Bg7 {[%clk 0:02:51]} 4. d4 {[%clk 0:03:00]}  Nf6 {[%clk 0:02:51]} 5. O-O {[%clk 0:03:01]}  O-O {[%clk 0:02:52]} 6. c4 {[%clk 0:03:00]}  c6 {[%clk 0:02:51]} 7. cxd5 {[%clk 0:02:57]}  cxd5 {[%clk 0:02:52]} 8. Ne5 {[%clk 0:02:57]}  Bf5 {[%clk 0:02:50]} 9. Nc3 {[%clk 0:02:56]}  Ne4 {[%clk 0:02:50]} 10. Bf4 {[%clk 0:02:34]}  Nc6 {[%clk 0:02:48]} 11. Rc1 {[%clk 0:02:26]}  Nxc3 {[%clk 0:02:44]} 12. bxc3 {[%clk 0:02:20]}  Rc8 {[%clk 0:02:43]} 13. Nxc6 {[%clk 0:02:18]}  bxc6 {[%clk 0:02:35]} 14. Qa4 {[%clk 0:02:16]}  Qd7 {[%clk 0:02:34]} 15. Rfd1 {[%clk 0:02:13]}  Rfe8 {[%clk 0:02:32]} 16. c4 {[%clk 0:01:58]}  Qb7 {[%clk 0:02:29]} 17. h4 {[%clk 0:01:16]}  Red8 {[%clk 0:02:21]} 18. Qa3 {[%clk 0:01:04]}  e6 {[%clk 0:02:19]} 19. Bd6 {[%clk 0:00:46]}  Qd7 {[%clk 0:02:06]} 20. Bc5 {[%clk 0:00:46]}  Bf8 {[%clk 0:01:54]} 21. Bxf8 {[%clk 0:00:40]}  Rxf8 {[%clk 0:01:53]} 22. Rc3 {[%clk 0:00:35]}  Rb8 {[%clk 0:01:49]} 23. Rb3 {[%clk 0:00:30]}  dxc4 {[%clk 0:01:44]} 24. Rc3 {[%clk 0:00:30]}  c5 {[%clk 0:01:33]} 25. Qxc5 {[%clk 0:00:20]}  Rfc8 {[%clk 0:01:32]} 26. Qa3 {[%clk 0:00:19]}  e5 {[%clk 0:01:13]} 27. d5 {[%clk 0:00:18]}  Bg4 {[%clk 0:01:04]} 28. Rd2 {[%clk 0:00:14]}  Bh3 {[%clk 0:00:59]} 29. Qc1 {[%clk 0:00:11]}  Bxg2 {[%clk 0:00:47]} 30. Kxg2 {[%clk 0:00:12]}  Qb5 {[%clk 0:00:40]} 31. d6 {[%clk 0:00:11]}  Rb7 {[%clk 0:00:38]} 32. Qc2 {[%clk 0:00:10]}  Rd7 {[%clk 0:00:37]} 33. Qe4 {[%clk 0:00:09]}  Qc5 {[%clk 0:00:24]} 34. Rd5 {[%clk 0:00:09]}  Qc6 {[%clk 0:00:24]} 35. Rxe5 {[%clk 0:00:09]}  Rxd6 {[%clk 0:00:22]} 36. Qxc6 {[%clk 0:00:06]}  Rdxc6 {[%clk 0:00:23]} 37. Ra5 {[%clk 0:00:06]}  R8c7 {[%clk 0:00:20]} 38. e3 {[%clk 0:00:06]}  Kg7 {[%clk 0:00:20]} 39. Kf3 {[%clk 0:00:06]}  Kf6 {[%clk 0:00:20]} 40. Ke2 {[%clk 0:00:06]}  Rb7 {[%clk 0:00:19]} 41. Ra4 {[%clk 0:00:05]}  Rb2+ {[%clk 0:00:17]} 42. Kf3 {[%clk 0:00:03]}  a6 {[%clk 0:00:17]} 43. Rcxc4 {[%clk 0:00:02]}  Rxc4 {[%clk 0:00:18]} 44. Rxc4 {[%clk 0:00:02]}  Rxa2 {[%clk 0:00:18]} 45. g4 {[%clk 0:00:03]}  a5 {[%clk 0:00:16]} 46. Kg3 {[%clk 0:00:04]}  a4 {[%clk 0:00:17]} 47. f4 {[%clk 0:00:03]}  a3 {[%clk 0:00:16]} 48. Rc6+ {[%clk 0:00:04]}  Ke7 {[%clk 0:00:16]} 49. Ra6 {[%clk 0:00:04]}  Ra1 {[%clk 0:00:15]} 50. Kf3 {[%clk 0:00:05]}  a2 {[%clk 0:00:15]} 51. Kg2 {[%clk 0:00:04]}  Kd7 {[%clk 0:00:15]} 52. h5 {[%clk 0:00:04]}  gxh5 {[%clk 0:00:14]} 53. gxh5 {[%clk 0:00:05]}  Kc7 {[%clk 0:00:14]} 54. h6 {[%clk 0:00:04]}  Kb7 {[%clk 0:00:15]} 55. Ra3 {[%clk 0:00:05]}  Kb6 {[%clk 0:00:15]} 56. Kh2 {[%clk 0:00:05]}  Kb5 {[%clk 0:00:15]} 57. Kg2 {[%clk 0:00:05]}  Kb4 {[%clk 0:00:15]} 58. Ra8 {[%clk 0:00:05]}  Kb3 {[%clk 0:00:15]} 59. Kh2 {[%clk 0:00:05]}  Re1 {[%clk 0:00:14]} 60. Rb8+ {[%clk 0:00:01]}  Kc3 {[%clk 0:00:13]} 61. Rc8+ {[%clk 0:00:01]}  Kd3 {[%clk 0:00:13]} 62. Ra8 {[%clk 0:00:01]}  a1=Q {[%clk 0:00:13]} 0-1


[Site "https://www.chess.com"]

[Event "Titled Tuesday Blitz January 10 Early 2023"]
[White "Begmuratov, Khumoyun"]
[Black "Fisher_TheGalactic"]
[WhiteFideId "14210207"]
[WhiteElo "2387"]
[BlackElo "2530"]
[Result "1-0"]
[Round "09"]
[TimeControl "180+2"]
[Date "2023.01.10"]
[WhiteClock "0:00:40"]
[BlackClock "0:00:01"]

1. e4 {[%clk 0:03:00]}  b6 {[%clk 0:02:58]} 2. Nc3 {[%clk 0:03:00]}  Bb7 {[%clk 0:02:58]} 3. d4 {[%clk 0:03:01]}  e6 {[%clk 0:02:58]} 4. Bd3 {[%clk 0:02:49]}  Bb4 {[%clk 0:02:58]} 5. Ne2 {[%clk 0:02:41]}  Nf6 {[%clk 0:02:56]} 6. O-O {[%clk 0:02:40]}  d5 {[%clk 0:02:57]} 7. exd5 {[%clk 0:02:37]}  exd5 {[%clk 0:02:53]} 8. Ng3 {[%clk 0:02:32]}  O-O {[%clk 0:02:51]} 9. Bg5 {[%clk 0:02:23]}  Nbd7 {[%clk 0:02:51]} 10. Nf5 {[%clk 0:02:13]}  Be7 {[%clk 0:02:33]} 11. Re1 {[%clk 0:02:10]}  Re8 {[%clk 0:02:31]} 12. Qf3 {[%clk 0:02:06]}  Bf8 {[%clk 0:02:10]} 13. Qh3 {[%clk 0:01:44]}  c5 {[%clk 0:01:53]} 14. b3 {[%clk 0:01:19]}  cxd4 {[%clk 0:01:30]} 15. Nb5 {[%clk 0:01:09]}  a6 {[%clk 0:00:11]} 16. Rxe8 {[%clk 0:01:05]}  Qxe8 {[%clk 0:00:12]} 17. Nc7 {[%clk 0:01:02]}  Qe5 {[%clk 0:00:12]} 18. Nxa8 {[%clk 0:00:58]}  Bxa8 {[%clk 0:00:13]} 19. f4 {[%clk 0:00:52]}  Qe6 {[%clk 0:00:11]} 20. Nxd4 {[%clk 0:00:44]}  Qxh3 {[%clk 0:00:07]} 21. gxh3 {[%clk 0:00:45]}  Bc5 {[%clk 0:00:07]} 22. c3 {[%clk 0:00:45]}  Ne4 {[%clk 0:00:04]} 23. b4 {[%clk 0:00:40]}  Bxd4+ {[%clk 0:00:02]} 24. cxd4 {[%clk 0:00:40]}  h6 {[%clk 0:00:01]} 25. Bh4 {[%clk 0:00:40]} 1-0


[Site "https://www.chess.com"]

[Event "Titled Tuesday Blitz January 10 Early 2023"]
[White "Ordekalog"]
[Black "Rangel, Daniel"]
[BlackFideId "2124475"]
[WhiteElo "2635"]
[BlackElo "2207"]
[Result "0-1"]
[Round "09"]
[TimeControl "180+2"]
[Date "2023.01.10"]
[WhiteClock "0:00:37"]
[BlackClock "0:00:36"]

1. e4 {[%clk 0:03:00]}  c5 {[%clk 0:02:57]} 2. d3 {[%clk 0:02:59]}  g6 {[%clk 0:02:56]} 3. g3 {[%clk 0:02:59]}  Bg7 {[%clk 0:02:51]} 4. Bg2 {[%clk 0:02:58]}  Nc6 {[%clk 0:02:51]} 5. f4 {[%clk 0:02:58]}  d6 {[%clk 0:02:51]} 6. Nf3 {[%clk 0:02:56]}  Rb8 {[%clk 0:02:51]} 7. O-O {[%clk 0:02:55]}  b5 {[%clk 0:02:50]} 8. c3 {[%clk 0:02:49]}  b4 {[%clk 0:02:48]} 9. e5 {[%clk 0:02:48]}  dxe5 {[%clk 0:02:37]} 10. Ng5 {[%clk 0:02:47]}  Bb7 {[%clk 0:02:33]} 11. Qa4 {[%clk 0:02:38]}  Qd7 {[%clk 0:02:26]} 12. Nxf7 {[%clk 0:02:31]}  Kxf7 {[%clk 0:02:18]} 13. fxe5+ {[%clk 0:02:31]}  Ke8 {[%clk 0:02:11]} 14. e6 {[%clk 0:02:23]}  Qxe6 {[%clk 0:01:58]} 15. Bf4 {[%clk 0:02:22]}  Rc8 {[%clk 0:01:52]} 16. Nd2 {[%clk 0:02:21]}  Qd7 {[%clk 0:01:40]} 17. Ne4 {[%clk 0:02:17]}  Nd8 {[%clk 0:01:38]} 18. Qxd7+ {[%clk 0:01:36]}  Kxd7 {[%clk 0:01:39]} 19. Bh3+ {[%clk 0:01:34]}  e6 {[%clk 0:01:36]} 20. Nd6 {[%clk 0:01:32]}  Rc6 {[%clk 0:01:21]} 21. Bg2 {[%clk 0:01:06]}  Rxd6 {[%clk 0:01:17]} 22. Bxd6 {[%clk 0:01:04]}  Bxg2 {[%clk 0:01:16]} 23. Kxg2 {[%clk 0:00:59]}  Kxd6 {[%clk 0:01:14]} 24. cxb4 {[%clk 0:00:56]}  cxb4 {[%clk 0:01:15]} 25. Rac1 {[%clk 0:00:55]}  Ne7 {[%clk 0:01:10]} 26. Rc4 {[%clk 0:00:53]}  Nec6 {[%clk 0:01:05]} 27. a3 {[%clk 0:00:50]}  a5 {[%clk 0:00:54]} 28. axb4 {[%clk 0:00:49]}  axb4 {[%clk 0:00:54]} 29. b3 {[%clk 0:00:46]}  Rf8 {[%clk 0:00:49]} 30. Rfc1 {[%clk 0:00:43]}  Bc3 {[%clk 0:00:42]} 31. Rc2 {[%clk 0:00:41]}  Nd4 {[%clk 0:00:41]} 32. Ra2 {[%clk 0:00:40]}  N8c6 {[%clk 0:00:37]} 33. Ra6 {[%clk 0:00:37]}  Rc8 {[%clk 0:00:36]} 0-1


[Site "https://www.chess.com"]

[Event "Titled Tuesday Blitz January 10 Early 2023"]
[White "Volkov, Maksim"]
[Black "Defend, Balint"]
[WhiteFideId "54123070"]
[BlackFideId "17004853"]
[WhiteElo "2258"]
[BlackElo "1673"]
[Result "1-0"]
[Round "09"]
[TimeControl "180+2"]
[Date "2023.01.10"]
[WhiteClock "0:00:56"]
[BlackClock "0:00:13"]

1. d4 {[%clk 0:03:00]}  Nf6 {[%clk 0:02:58]} 2. c4 {[%clk 0:03:01]}  e6 {[%clk 0:02:58]} 3. g3 {[%clk 0:03:01]}  d5 {[%clk 0:02:57]} 4. Nf3 {[%clk 0:03:02]}  dxc4 {[%clk 0:02:57]} 5. Bg2 {[%clk 0:03:02]}  Bb4+ {[%clk 0:02:56]} 6. Bd2 {[%clk 0:03:02]}  a5 {[%clk 0:02:57]} 7. Qc2 {[%clk 0:03:02]}  Bxd2+ {[%clk 0:02:49]} 8. Qxd2 {[%clk 0:02:58]}  O-O {[%clk 0:02:36]} 9. Na3 {[%clk 0:02:48]}  Qd5 {[%clk 0:02:23]} 10. O-O {[%clk 0:02:46]}  b5 {[%clk 0:02:12]} 11. Ng5 {[%clk 0:02:31]}  b4 {[%clk 0:01:52]} 12. Bxd5 {[%clk 0:02:27]}  exd5 {[%clk 0:01:53]} 13. Nb5 {[%clk 0:02:23]}  Na6 {[%clk 0:01:52]} 14. a3 {[%clk 0:02:22]}  Bd7 {[%clk 0:01:50]} 15. a4 {[%clk 0:02:15]}  h6 {[%clk 0:01:40]} 16. Nf3 {[%clk 0:02:15]}  Rfe8 {[%clk 0:01:37]} 17. Ne5 {[%clk 0:02:14]}  Re7 {[%clk 0:01:36]} 18. f3 {[%clk 0:02:11]}  Rd8 {[%clk 0:01:27]} 19. Na7 {[%clk 0:02:07]}  Re6 {[%clk 0:01:25]} 20. Rfe1 {[%clk 0:01:53]}  Be8 {[%clk 0:01:20]} 21. e4 {[%clk 0:01:50]}  dxe4 {[%clk 0:01:21]} 22. Nxc4 {[%clk 0:01:48]}  c6 {[%clk 0:00:58]} 23. fxe4 {[%clk 0:01:39]}  Re7 {[%clk 0:00:54]} 24. Nxc6 {[%clk 0:01:22]}  Bxc6 {[%clk 0:00:52]} 25. d5 {[%clk 0:01:19]}  Ba8 {[%clk 0:00:47]} 26. d6 {[%clk 0:01:15]}  Re6 {[%clk 0:00:40]} 27. e5 {[%clk 0:01:13]}  Ne4 {[%clk 0:00:40]} 28. Rxe4 {[%clk 0:01:04]}  Bxe4 {[%clk 0:00:39]} 29. Qd4 {[%clk 0:01:05]}  Bb7 {[%clk 0:00:33]} 30. Nxa5 {[%clk 0:00:58]}  Bc8 {[%clk 0:00:32]} 31. Nc6 {[%clk 0:00:57]}  Rd7 {[%clk 0:00:26]} 32. Ne7+ {[%clk 0:00:55]}  Rexe7 {[%clk 0:00:14]} 33. dxe7 {[%clk 0:00:56]}  Rxd4 {[%clk 0:00:13]} 34. e8=Q+ {[%clk 0:00:56]} 1-0


[Site "https://www.chess.com"]

[Event "Titled Tuesday Blitz January 10 Early 2023"]
[White "Khamdamova, Afruza"]
[Black "Korchmar, Vasiliy"]
[WhiteFideId "14210444"]
[BlackFideId "24131750"]
[WhiteElo "2162"]
[BlackElo "2438"]
[Result "1-0"]
[Round "09"]
[TimeControl "180+2"]
[Date "2023.01.10"]
[WhiteClock "0:01:58"]
[BlackClock "0:02:07"]

1. e4 {[%clk 0:03:00]}  e6 {[%clk 0:02:59]} 2. d4 {[%clk 0:03:00]}  d5 {[%clk 0:02:59]} 3. Nd2 {[%clk 0:03:01]}  c5 {[%clk 0:02:57]} 4. Ngf3 {[%clk 0:03:01]}  Nc6 {[%clk 0:02:57]} 5. exd5 {[%clk 0:02:59]}  exd5 {[%clk 0:02:55]} 6. Bb5 {[%clk 0:02:59]}  cxd4 {[%clk 0:02:50]} 7. Nb3 {[%clk 0:02:56]}  Bd6 {[%clk 0:02:46]} 8. O-O {[%clk 0:02:54]}  Nf6 {[%clk 0:02:46]} 9. Re1+ {[%clk 0:02:52]}  Be6 {[%clk 0:02:46]} 10. Nbxd4 {[%clk 0:02:51]}  O-O {[%clk 0:02:46]} 11. Nxe6 {[%clk 0:02:48]}  fxe6 {[%clk 0:02:46]} 12. Rxe6 {[%clk 0:02:47]}  Kh8 {[%clk 0:02:08]} 13. Bg5 {[%clk 0:02:44]}  Qd7 {[%clk 0:02:07]} 14. Re1 {[%clk 0:02:36]}  Ne4 {[%clk 0:02:08]} 15. Bh4 {[%clk 0:02:23]}  Bc5 {[%clk 0:02:08]} 16. Rxe4 {[%clk 0:02:15]}  a6 {[%clk 0:02:06]} 17. Bxc6 {[%clk 0:02:14]}  Qxc6 {[%clk 0:02:07]} 18. Re1 {[%clk 0:02:13]}  Rf5 {[%clk 0:02:05]} 19. Bg3 {[%clk 0:02:10]}  Raf8 {[%clk 0:02:05]} 20. Nd4 {[%clk 0:02:09]}  Bxd4 {[%clk 0:02:05]} 21. Qxd4 {[%clk 0:02:10]}  Qxc2 {[%clk 0:02:06]} 22. Rac1 {[%clk 0:02:07]}  Qe4 {[%clk 0:02:04]} 23. Rxe4 {[%clk 0:02:07]}  dxe4 {[%clk 0:02:05]} 24. Qxe4 {[%clk 0:02:06]}  h6 {[%clk 0:02:06]} 25. Qxb7 {[%clk 0:02:06]}  a5 {[%clk 0:02:06]} 26. Rc8 {[%clk 0:02:02]}  a4 {[%clk 0:02:06]} 27. Rxf8+ {[%clk 0:02:02]}  Rxf8 {[%clk 0:02:07]} 28. Be5 {[%clk 0:02:02]}  Rd8 {[%clk 0:02:07]} 29. Qxg7# {[%clk 0:01:58]} 1-0


[Site "https://www.chess.com"]

[Event "Titled Tuesday Blitz January 10 Early 2023"]
[White "Berezin, Viktor"]
[Black "Tologon tegin, Semetei"]
[WhiteFideId "14107872"]
[BlackFideId "13800574"]
[WhiteElo "2307"]
[BlackElo "2372"]
[Result "1-0"]
[Round "09"]
[TimeControl "180+2"]
[Date "2023.01.10"]
[WhiteClock "0:00:04"]
[BlackClock "0:00:01"]

1. d4 {[%clk 0:02:57]}  Nf6 {[%clk 0:02:50]} 2. Nf3 {[%clk 0:02:56]}  e6 {[%clk 0:02:50]} 3. c4 {[%clk 0:02:55]}  Bb4+ {[%clk 0:02:49]} 4. Nbd2 {[%clk 0:02:54]}  b6 {[%clk 0:02:48]} 5. g3 {[%clk 0:02:54]}  Bb7 {[%clk 0:02:46]} 6. Bg2 {[%clk 0:02:54]}  O-O {[%clk 0:02:47]} 7. O-O {[%clk 0:02:55]}  d5 {[%clk 0:02:43]} 8. a3 {[%clk 0:02:52]}  Bd6 {[%clk 0:02:41]} 9. b4 {[%clk 0:02:50]}  a5 {[%clk 0:02:30]} 10. Rb1 {[%clk 0:02:47]}  axb4 {[%clk 0:02:27]} 11. axb4 {[%clk 0:02:42]}  Nbd7 {[%clk 0:01:24]} 12. c5 {[%clk 0:02:36]}  Be7 {[%clk 0:01:23]} 13. Re1 {[%clk 0:02:28]}  c6 {[%clk 0:01:10]} 14. e4 {[%clk 0:02:23]}  bxc5 {[%clk 0:01:08]} 15. e5 {[%clk 0:02:14]}  Ne4 {[%clk 0:01:02]} 16. Nxe4 {[%clk 0:02:04]}  dxe4 {[%clk 0:00:56]} 17. Rxe4 {[%clk 0:01:51]}  cxb4 {[%clk 0:00:54]} 18. Rg4 {[%clk 0:01:36]}  Re8 {[%clk 0:00:49]} 19. Bh6 {[%clk 0:01:30]}  g6 {[%clk 0:00:46]} 20. h4 {[%clk 0:01:28]}  c5 {[%clk 0:00:38]} 21. h5 {[%clk 0:01:25]}  cxd4 {[%clk 0:00:33]} 22. hxg6 {[%clk 0:01:18]}  hxg6 {[%clk 0:00:32]} 23. Qxd4 {[%clk 0:00:54]}  Nc5 {[%clk 0:00:25]} 24. Qf4 {[%clk 0:00:37]}  Nd3 {[%clk 0:00:23]} 25. Qe3 {[%clk 0:00:35]}  Ra3 {[%clk 0:00:19]} 26. Rd4 {[%clk 0:00:23]}  Qc7 {[%clk 0:00:04]} 27. Rxd3 {[%clk 0:00:22]}  Qc2 {[%clk 0:00:05]} 28. Rbd1 {[%clk 0:00:14]}  Bc5 {[%clk 0:00:05]} 29. Qd2 {[%clk 0:00:09]}  Qxd2 {[%clk 0:00:04]} 30. R3xd2 {[%clk 0:00:09]}  b3 {[%clk 0:00:04]} 31. Nd4 {[%clk 0:00:07]}  Bxg2 {[%clk 0:00:03]} 32. Kxg2 {[%clk 0:00:08]}  Rd8 {[%clk 0:00:02]} 33. Nxb3 {[%clk 0:00:05]}  Rxd2 {[%clk 0:00:02]} 34. Nxd2 {[%clk 0:00:06]}  Rd3 {[%clk 0:00:01]} 35. Kf1 {[%clk 0:00:04]}  Rd5 {[%clk 0:00:01]} 36. Ke2 {[%clk 0:00:04]} 1-0


[Site "https://www.chess.com"]

[Event "Titled Tuesday Blitz January 10 Early 2023"]
[White "Djokovic, Nebojsa"]
[Black "Krienke, Makaio"]
[WhiteFideId "938300"]
[BlackFideId "2038854"]
[WhiteElo "2119"]
[BlackElo "2115"]
[Result "0-1"]
[Round "09"]
[TimeControl "180+2"]
[Date "2023.01.10"]
[WhiteClock "0:00:01"]
[BlackClock "0:00:40"]

1. e4 {[%clk 0:03:00]}  e5 {[%clk 0:02:59]} 2. Nf3 {[%clk 0:03:01]}  Nc6 {[%clk 0:03:00]} 3. Bb5 {[%clk 0:03:02]}  a6 {[%clk 0:02:59]} 4. Ba4 {[%clk 0:03:02]}  Nf6 {[%clk 0:02:59]} 5. O-O {[%clk 0:03:03]}  Be7 {[%clk 0:02:57]} 6. d3 {[%clk 0:03:03]}  b5 {[%clk 0:02:57]} 7. Bb3 {[%clk 0:03:03]}  d6 {[%clk 0:02:53]} 8. a3 {[%clk 0:03:03]}  Na5 {[%clk 0:02:47]} 9. Ba2 {[%clk 0:03:02]}  c5 {[%clk 0:02:48]} 10. Nc3 {[%clk 0:03:01]}  O-O {[%clk 0:02:44]} 11. b4 {[%clk 0:03:01]}  Nc6 {[%clk 0:02:42]} 12. Nd5 {[%clk 0:03:00]}  Be6 {[%clk 0:02:39]} 13. Bd2 {[%clk 0:02:53]}  Re8 {[%clk 0:02:36]} 14. h3 {[%clk 0:02:50]}  h6 {[%clk 0:02:22]} 15. c3 {[%clk 0:02:49]}  Bf8 {[%clk 0:02:19]} 16. Qc2 {[%clk 0:02:30]}  a5 {[%clk 0:02:18]} 17. a4 {[%clk 0:02:25]}  axb4 {[%clk 0:02:17]} 18. axb5 {[%clk 0:02:24]}  bxc3 {[%clk 0:02:15]} 19. bxc6 {[%clk 0:02:13]}  cxd2 {[%clk 0:02:08]} 20. c7 {[%clk 0:02:07]}  Qc8 {[%clk 0:02:05]} 21. Nb6 {[%clk 0:02:05]}  Rxa2 {[%clk 0:01:54]} 22. Rxa2 {[%clk 0:01:58]}  Qxc7 {[%clk 0:01:54]} 23. Nc4 {[%clk 0:01:58]}  d5 {[%clk 0:01:40]} 24. exd5 {[%clk 0:01:52]}  Nxd5 {[%clk 0:01:32]} 25. Qxd2 {[%clk 0:01:11]}  e4 {[%clk 0:01:32]} 26. dxe4 {[%clk 0:00:44]}  Nb4 {[%clk 0:01:32]} 27. Rc2 {[%clk 0:00:45]}  Nxc2 {[%clk 0:01:26]} 28. Qxc2 {[%clk 0:00:45]}  Qf4 {[%clk 0:01:26]} 29. Nfd2 {[%clk 0:00:34]}  g6 {[%clk 0:01:20]} 30. Re1 {[%clk 0:00:30]}  Bg7 {[%clk 0:01:20]} 31. Nb3 {[%clk 0:00:28]}  Rb8 {[%clk 0:01:11]} 32. Nxc5 {[%clk 0:00:26]}  Bxh3 {[%clk 0:00:58]} 33. Nd3 {[%clk 0:00:11]}  Qg5 {[%clk 0:00:57]} 34. f4 {[%clk 0:00:11]}  Qg3 {[%clk 0:00:53]} 35. Kh1 {[%clk 0:00:05]}  Bxg2+ {[%clk 0:00:47]} 36. Qxg2 {[%clk 0:00:06]}  Qxd3 {[%clk 0:00:47]} 37. Ne3 {[%clk 0:00:06]}  Rb2 {[%clk 0:00:47]} 38. Qf3 {[%clk 0:00:04]}  Bd4 {[%clk 0:00:46]} 39. f5 {[%clk 0:00:03]}  Qd2 {[%clk 0:00:41]} 40. Rf1 {[%clk 0:00:01]}  Qh2# {[%clk 0:00:40]} 0-1


[Site "https://www.chess.com"]

[Event "Titled Tuesday Blitz January 10 Early 2023"]
[White "Ronka, Erik"]
[Black "Maksimenko, Viktor"]
[WhiteFideId "505080"]
[BlackFideId "13710478"]
[WhiteElo "2276"]
[BlackElo "2196"]
[Result "0-1"]
[Round "09"]
[TimeControl "180+2"]
[Date "2023.01.10"]
[WhiteClock "0:00:02"]
[BlackClock "0:00:39"]

1. e4 {[%clk 0:03:00]}  e5 {[%clk 0:02:57]} 2. Nf3 {[%clk 0:03:00]}  Nc6 {[%clk 0:02:57]} 3. Bb5 {[%clk 0:03:00]}  a6 {[%clk 0:02:57]} 4. Ba4 {[%clk 0:03:01]}  Nf6 {[%clk 0:02:57]} 5. O-O {[%clk 0:03:01]}  b5 {[%clk 0:02:57]} 6. Bb3 {[%clk 0:03:01]}  Bc5 {[%clk 0:02:58]} 7. c3 {[%clk 0:03:01]}  d6 {[%clk 0:02:58]} 8. d4 {[%clk 0:03:01]}  Bb6 {[%clk 0:02:57]} 9. Be3 {[%clk 0:03:01]}  O-O {[%clk 0:02:54]} 10. Nbd2 {[%clk 0:03:01]}  Rb8 {[%clk 0:02:53]} 11. a3 {[%clk 0:02:48]}  h6 {[%clk 0:02:50]} 12. h3 {[%clk 0:02:48]}  Re8 {[%clk 0:02:48]} 13. Re1 {[%clk 0:02:45]}  Bb7 {[%clk 0:02:48]} 14. Bc2 {[%clk 0:02:38]}  Na5 {[%clk 0:02:22]} 15. b4 {[%clk 0:02:18]}  Nc6 {[%clk 0:02:20]} 16. d5 {[%clk 0:02:11]}  Bxe3 {[%clk 0:02:08]} 17. Rxe3 {[%clk 0:02:11]}  Ne7 {[%clk 0:02:09]} 18. Ne1 {[%clk 0:01:41]}  c6 {[%clk 0:02:03]} 19. c4 {[%clk 0:01:37]}  bxc4 {[%clk 0:01:50]} 20. dxc6 {[%clk 0:01:35]}  Nxc6 {[%clk 0:01:51]} 21. Nxc4 {[%clk 0:01:35]}  Nd4 {[%clk 0:01:51]} 22. Na5 {[%clk 0:01:29]}  Ba8 {[%clk 0:01:49]} 23. Nf3 {[%clk 0:01:16]}  Nxf3+ {[%clk 0:01:25]} 24. Qxf3 {[%clk 0:01:16]}  d5 {[%clk 0:01:26]} 25. exd5 {[%clk 0:00:48]}  Nxd5 {[%clk 0:01:26]} 26. Ree1 {[%clk 0:00:32]}  Nxb4 {[%clk 0:01:19]} 27. Be4 {[%clk 0:00:20]}  Nc2 {[%clk 0:01:17]} 28. Red1 {[%clk 0:00:16]}  Qxa5 {[%clk 0:01:15]} 29. Rd7 {[%clk 0:00:11]}  Rf8 {[%clk 0:01:09]} 30. Bxa8 {[%clk 0:00:01]}  Rxa8 {[%clk 0:01:10]} 31. Rc1 {[%clk 0:00:01]}  Nd4 {[%clk 0:01:09]} 32. Qe4 {[%clk 0:00:02]}  Qb5 {[%clk 0:01:07]} 33. Rd5 {[%clk 0:00:02]}  Ne2+ {[%clk 0:00:39]} 0-1


[Site "https://www.chess.com"]